bitfinex/quotes_SOLUSD_20240727
["timestamp","ask_amount","ask_price","bid_price","bid_amount"]
[1722045945057,9.91774987,181.89,181.86,5.4987]
[1722045945261,45.0,181.88,181.87,5.4984]
[1722045950545,45.0,181.88,181.86,5.4985]
[1722045951552,45.0,181.88,181.87,5.4984]
[1722045953964,45.0,181.88,181.86,5.4986]
[1722045954650,45.0,181.88,181.81,22.0594]
[1722045954651,45.0,181.88,181.87,5.4984]
[1722045955560,45.0,181.88,181.85,5.4987]
[1722045955850,45.0,181.87,181.85,5.4987]
[1722045956046,45.0,181.89,181.85,5.4987]
[1722045957370,45.0,181.89,181.86,5.4986]
[1722045957762,18.5683,181.88,181.83,5.4993]
[1722045957967,45.0,181.87,181.84,5.4992]
[1722045963076,45.0,181.87,181.85,5.499]
[1722045964277,45.0,181.87,181.84,5.4992]
[1722045964871,45.0,181.87,181.81,22.0594]
[1722045965074,45.0,181.87,181.79,13.07]
[1722045965075,18.5691,181.85,181.79,13.07]
[1722045965285,45.0,181.84,181.78,13.07]
[1722045965575,45.0,181.84,181.75,0.7875322]
[1722045965576,13.07,181.83,181.75,0.7875322]
[1722045965881,45.0,181.82,181.8,5.5005]
[1722045967776,45.0,181.82,181.81,5.5002]
[1722045968568,13.07,181.86,181.83,5.4994]
[1722045968970,45.0,181.85,181.8,13.07]
[1722045969163,45.0,181.85,181.81,5.5]
[1722045969480,45.0,181.85,181.82,5.4998]
[1722045970162,45.0,181.85,181.83,5.4995]
[1722045971055,45.0,181.85,181.82,18.5698]
[1722045971261,45.0,181.86,181.82,18.5698]
[1722045971568,45.0,181.86,181.82,5.4998]
[1722045972392,5.4991,181.85,181.8,18.5702]
[1722045972684,45.0,181.84,181.81,5.5002]
[1722045972982,58.07,181.86,181.81,5.5002]
[1722045973181,63.5687,181.86,181.81,5.5002]
[1722045973589,50.4987,181.86,181.81,18.5702]
[1722045973882,50.4987,181.86,181.82,5.4999]
[1722045974091,45.0,181.86,181.82,5.4999]
[1722045974581,45.0,181.86,181.82,18.5699]
[1722045975484,50.4988,181.86,181.82,5.4999]
[1722045976560,63.5688,181.86,181.81,5.5001]
[1722045976764,18.569,181.85,181.81,5.5001]
[1722045977079,45.0,181.84,181.81,5.5001]
[1722045977463,45.0,181.84,181.82,5.4999]
[1722045977670,45.0,181.85,181.82,5.4999]
[1722045978077,50.4987,181.86,181.82,5.4999]
[1722045979985,45.0,181.86,181.82,5.4998]
[1722045980563,50.4987,181.86,181.81,18.5701]
[1722045980770,63.5687,181.86,181.81,5.5001]
[1722045984172,58.07,181.86,181.82,5.4998]
[1722045984590,45.0,181.86,181.82,5.4998]
[1722045985391,45.0,181.86,181.83,5.4995]
[1722045985785,45.0,181.87,181.83,5.4995]
[1722045988894,45.0,181.87,181.83,18.5695]
[1722045989689,45.0,181.87,181.84,5.4993]
[1722045989996,45.0,181.87,181.84,18.5693]
[1722045990184,45.0,181.88,181.84,18.5693]
[1722045994394,45.0,181.88,181.82,18.5696]
[1722045994595,5.4985,181.87,181.82,5.4996]
[1722045994790,45.0,181.86,181.82,5.4996]
[1722045995097,45.0,181.86,181.83,5.4995]
[1722045996803,45.0,181.87,181.84,5.4993]
[1722046000482,45.0,181.87,181.86,5.4987]
[1722046006808,45.0,181.87,181.85,5.4989]
[1722046007699,45.0,181.88,181.85,5.4989]
[1722046011200,45.0,181.88,181.86,5.4987]
[1722046015608,45.0,181.88,181.83,13.07]
[1722046015819,20.9455,181.93,181.88,5.498]
[1722046016109,58.07,181.92,181.88,5.498]
[1722046016414,63.567,181.92,181.88,5.498]
[1722046017416,63.567,181.92,181.87,5.4983]
[1722046018201,50.497,181.92,181.88,5.498]
[1722046019610,45.0,181.92,181.88,5.498]
[1722046024213,25.96135303,181.96,181.88,13.07]
[1722046024214,5.75235303,181.96,181.88,13.07]
[1722046024407,5.75235303,181.96,181.92,18.5668]
[1722046024605,21.2892,181.97,181.93,5.4965]
[1722046025505,21.2892,181.97,181.93,13.07]
[1722046025695,5.4955,181.97,181.93,13.07]
[1722046025895,45.0,181.96,181.93,13.07]
[1722046027204,50.4957,181.96,181.93,13.07]
[1722046029898,5.4952,181.98,181.93,18.5665]
[1722046031422,45.0,181.97,181.93,18.5665]
[1722046031802,45.0,181.97,181.93,5.4965]
[1722046032004,50.4954,181.97,181.93,18.5665]
[1722046032520,50.4954,181.97,181.93,5.4965]
[1722046033229,5.4959,181.96,181.85,16.1704]
[1722046033406,45.0,181.95,181.92,5.4968]
[1722046035118,45.0,181.95,181.85,16.1704]
[1722046035315,13.07,181.94,181.88,13.07]
[1722046035507,45.0,181.93,181.85,16.1704]
[1722046035832,13.07,181.92,181.85,16.1704]
[1722046036001,63.5674,181.91,181.86,5.4984]
[1722046036196,18.5674,181.91,181.86,5.4984]
[1722046036403,45.0,181.9,181.87,5.4984]
[1722046040505,45.0,181.9,181.86,13.07]
[1722046040732,11.651,181.95,181.89,13.07]
[1722046040938,45.0,181.94,181.9,5.4973]
[1722046041734,34.5896,181.96,181.92,5.4969]
[1722046043029,45.0,181.95,181.92,5.4969]
[1722046043419,45.0,181.95,181.93,5.4965]
[1722046043941,45.0,181.95,181.92,5.4968]
[1722046046615,45.0,181.95,181.92,18.5668]
[1722046047845,45.0,181.95,181.92,5.4968]
[1722046050322,45.0,181.96,181.92,5.4968]
[1722046050515,45.0,181.96,181.93,5.4966]
[1722046050720,45.0,181.97,181.93,5.4966]
[1722046053247,50.4954,181.97,181.93,5.4966]
[1722046057349,50.4954,181.97,181.92,18.5668]
[1722046064231,50.4954,181.97,181.93,5.4965]
[1722046065236,58.07,181.97,181.92,5.4969]
[1722046065436,45.0,181.97,181.92,18.5669]
[1722046066036,50.4954,181.97,181.92,18.5669]
[1722046068053,50.4954,181.97,181.93,5.4965]
[1722046068442,50.4954,181.97,181.93,18.5665]
[1722046069353,5.4954,181.97,181.93,18.5665]
[1722046069539,5.495,181.99,181.95,13.07]
[1722046070244,5.495,181.99,181.95,18.5659]
[1722046070857,45.0,181.98,181.95,18.5659]
[1722046072561,5.4939,182.02,181.97,5.4952]
[1722046072757,5.4939,182.02,181.97,18.5652]
[1722046072955,5.4939,182.02,181.98,18.565]
[1722046073149,5.4935,182.04,181.99,18.5647]
[1722046073338,5.4936,182.03,181.99,5.4947]
[1722046073755,5.4936,182.03,181.98,5.495]
[1722046074844,45.0,182.02,181.98,5.495]
[1722046077944,50.4939,182.02,181.98,5.495]
[1722046079461,45.0,182.02,181.98,5.495]
[1722046084671,58.07,182.02,181.98,5.495]
[1722046087668,63.564,182.02,181.97,5.4953]
[1722046087868,13.07,182.0,181.94,13.07]
[1722046088172,45.0,181.99,181.95,5.4959]
[1722046088675,58.07,181.99,181.95,5.4959]
[1722046088876,58.07,181.99,181.96,5.4956]
[1722046091263,58.07,181.99,181.92,6.5962]
[1722046091264,13.07,181.98,181.92,19.6662]
[1722046091461,13.07,181.96,181.89,13.07]
[1722046091668,13.07,181.95,181.88,13.07]
[1722046091973,58.07,181.94,181.87,34.7854]
[1722046092168,58.07,181.94,181.91,5.497]
[1722046093155,45.0,181.94,181.91,5.497]
[1722046093367,45.0,181.95,181.91,5.497]
[1722046093559,45.0,181.95,181.92,5.4968]
[1722046094357,45.0,181.96,181.92,13.07]
[1722046094557,45.0,181.97,181.92,13.07]
[1722046095059,45.0,181.97,181.87,21.7154]
[1722046095060,45.0,181.97,181.93,13.07]
[1722046095258,49.5651,182.02,181.94,13.07]
[1722046095259,18.5645,182.0,181.94,13.07]
[1722046095459,5.4945,182.0,181.95,13.07]
[1722046096359,5.4945,182.0,181.96,5.4956]
[1722046096559,45.0,181.99,181.96,5.4956]
[1722046096955,45.0,181.99,181.95,18.5659]
[1722046099878,50.4948,181.99,181.95,18.5659]
[1722046100390,50.4948,181.99,181.95,13.07]
[1722046100985,50.4948,181.99,181.94,5.4962]
[1722046100986,50.4948,181.99,181.94,18.5662]
[1722046101184,45.0,181.99,181.94,18.5662]
[1722046101492,5.4951,181.98,181.94,18.5662]
[1722046101666,45.0,181.97,181.87,21.7154]
[1722046101867,13.07,181.95,181.88,13.07]
[1722046102067,5.497,181.92,181.88,18.5681]
[1722046102268,5.4966,181.93,181.88,5.4981]
[1722046102468,45.0,181.92,181.88,5.4981]
[1722046102792,45.0,181.92,181.89,5.4977]
[1722046103469,45.0,181.93,181.89,5.4977]
[1722046104990,45.0,181.93,181.9,5.4974]
[1722046106972,50.4966,181.93,181.88,13.07]
[1722046107284,45.0,181.93,181.89,5.4977]
[1722046107485,63.5667,181.93,181.88,5.4981]
[1722046113292,5.4982,181.88,181.82,6.3533]
[1722046113594,45.0,181.87,181.83,5.4994]
[1722046113793,50.4984,181.87,181.83,5.4994]
[1722046114698,45.0,181.87,181.83,5.4994]
[1722046115893,45.0,181.87,181.84,5.4992]
[1722046116392,45.0,181.87,181.84,13.07]
[1722046116597,13.07,181.92,181.85,13.07]
[1722046116897,5.4966,181.93,181.87,13.07]
[1722046117100,5.4966,181.93,181.88,5.498]
[1722046117686,18.5666,181.93,181.88,5.498]
[1722046118800,45.0,181.92,181.88,5.498]
[1722046119104,50.4969,181.92,181.88,5.498]
[1722046119402,5.4972,181.91,181.87,5.4983]
[1722046119582,45.0,181.9,181.87,5.4983]
[1722046121493,45.0,181.9,181.86,5.4986]
[1722046121794,50.4975,181.9,181.86,5.4986]
[1722046122688,45.0,181.9,181.86,5.4986]
[1722046126013,45.0,181.9,181.87,5.4982]
[1722046126496,45.0,181.91,181.87,5.4982]
[1722046128528,50.4974,181.91,181.85,13.07]
[1722046128732,50.4974,181.91,181.86,5.4987]
[1722046131529,50.4974,181.91,181.87,5.4984]
[1722046138145,50.4974,181.91,181.86,5.4986]
[1722046140227,5.4975,181.9,181.86,5.4986]
[1722046140546,45.0,181.89,181.86,5.4986]
[1722046143348,45.0,181.9,181.86,5.4986]
[1722046145550,5.4978,181.89,181.85,5.499]
[1722046145734,58.07,181.88,181.81,15.706]
[1722046145929,13.07,181.88,181.81,28.776]
[1722046146146,45.0,181.87,181.83,5.4995]
[1722046153455,45.0,181.87,181.84,5.4993]
[1722046155250,13.07,181.86,181.82,5.4998]
[1722046155463,63.569,181.85,181.79,13.07]
[1722046155667,13.07,181.84,181.77,13.07]
[1722046155965,13.07,181.81,181.75,0.7875322]
[1722046156176,13.07,181.8,181.75,0.7875322]
[1722046156344,45.0,181.79,181.76,5.5014]
[1722046156548,45.0,181.79,181.75,0.7875322]
[1722046156958,45.0,181.79,181.77,5.5014]
[1722046157663,45.0,181.79,181.78,5.5011]
[1722046158462,13.07,181.82,181.79,5.5008]
[1722046158764,45.0,181.81,181.79,5.5008]
[1722046159467,45.0,181.81,181.78,5.5011]
[1722046159468,58.07,181.81,181.78,5.5011]
[1722046159767,58.07,181.81,181.75,0.7875322]
[1722046160673,45.0,181.81,181.75,0.7875322]
[1722046160964,45.0,181.81,181.79,5.5008]
[1722046161156,45.0,181.82,181.79,5.5008]
[1722046161356,45.0,181.82,181.78,13.07]
[1722046161357,58.07,181.82,181.78,5.5011]
[1722046161559,63.57,181.82,181.78,5.5011]
[1722046161870,63.57,181.82,181.77,5.5013]
[1722046162071,5.5006,181.8,181.76,5.5017]
[1722046162282,45.0,181.79,181.76,5.5017]
[1722046162653,45.0,181.8,181.76,5.5017]
[1722046162953,45.0,181.8,181.77,5.5014]
[1722046164575,58.07,181.8,181.76,5.5016]
[1722046166454,45.0,181.8,181.78,5.5011]
[1722046167070,45.0,181.81,181.77,5.5013]
[1722046167672,45.0,181.81,181.78,5.5011]
[1722046168068,45.0,181.81,181.77,5.5013]
[1722046169074,50.5002,181.81,181.77,5.5013]
[1722046169675,45.0,181.81,181.77,5.5013]
[1722046169855,45.0,181.81,181.78,5.501]
[1722046170255,45.0,181.82,181.78,5.501]
[1722046171651,5.4997,181.83,181.78,5.501]
[1722046171872,15.8187,181.87,181.81,18.5702]
[1722046171873,5.4988,181.86,181.81,18.5702]
[1722046172068,34.3871,181.87,181.82,5.4999]
[1722046172264,34.3871,181.87,181.81,13.07]
[1722046172265,5.4987,181.86,181.81,18.5701]
[1722046172473,5.4994,181.84,181.79,13.07]
[1722046173068,5.4994,181.84,181.75,23.5386322]
[1722046173272,45.0,181.83,181.79,13.07]
[1722046174061,13.07,181.85,181.79,13.07]
[1722046174267,45.0,181.84,181.82,5.4998]
[1722046174881,45.0,181.84,181.76,1.09994856]
[1722046174882,5.4998,181.83,181.78,5.501]
[1722046175187,58.07,181.82,181.78,5.501]
[1722046175390,58.07,181.82,181.75,36.6086322]
[1722046175391,45.0,181.81,181.77,5.5013]
[1722046180075,45.0,181.81,181.78,5.5011]
[1722046181481,50.5002,181.81,181.77,5.5013]
[1722046182078,45.0,181.81,181.77,5.5013]
[1722046186858,50.5002,181.81,181.76,5.5016]
[1722046187469,63.5702,181.81,181.76,5.5016]
[1722046187863,5.5006,181.8,181.76,5.5016]
[1722046188068,45.0,181.79,181.76,5.5016]
[1722046188283,45.0,181.79,181.75,0.7875322]
[1722046188284,63.5709,181.79,181.75,0.7875322]
[1722046188785,58.07,181.79,181.75,6.2894322]
[1722046189165,13.07,181.78,181.75,0.7875322]
[1722046189367,45.0,181.79,181.75,0.7875322]
[1722046189368,63.5715,181.77,181.75,0.7875322]
[1722046190684,13.07,181.76,181.75,0.7875322]
[1722046190987,45.0,181.76,181.75,0.7875322]
[1722046191184,5.73524926,181.81,181.75,13.8575322]
[1722046191388,13.07,181.82,181.75,13.8575322]
[1722046191590,18.57,181.82,181.77,5.5013]
[1722046192170,18.5702,181.81,181.77,5.5013]
[1722046192392,5.5002,181.81,181.77,5.5013]
[1722046192590,45.0,181.8,181.77,5.5013]
[1722046193678,45.0,181.8,181.76,5.5016]
[1722046195768,5.4994,181.84,181.79,18.5706]
[1722046195965,13.07,181.84,181.78,13.07]
[1722046196171,13.07,181.83,181.76,13.07]
[1722046196378,13.07,181.82,181.75,13.8575322]
[1722046196975,5.5,181.82,181.77,5.5014]
[1722046197379,45.0,181.81,181.77,5.5014]
[1722046197590,45.0,181.81,181.77,18.5714]
[1722046199070,45.0,181.81,181.77,13.07]
[1722046199286,45.0,181.81,181.79,5.5007]
[1722046200880,45.0,181.81,181.78,5.501]
[1722046201078,45.0,181.82,181.78,5.501]
[1722046202687,45.0,181.82,181.79,5.5008]
[1722046203783,45.0,181.82,181.78,5.501]
[1722046203981,13.07,181.79,181.76,5.5015]
[1722046204185,18.5709,181.79,181.75,0.7875322]
[1722046204385,45.0,181.78,181.75,0.7875322]
[1722046204571,5.5017,181.76,181.75,0.7875322]
[1722046204773,63.5717,181.76,181.75,0.7875322]
[1722046207593,45.0,181.76,181.75,0.7875322]
[1722046209582,45.0,181.76,181.75,6.2895322]
[1722046210197,5.5002,181.81,181.76,5.5016]
[1722046210389,18.5702,181.81,181.76,5.5016]
[1722046210781,18.5706,181.8,181.75,6.2894322]
[1722046210981,5.5009,181.79,181.75,6.2894322]
[1722046211583,13.07,181.8,181.76,5.5017]
[1722046211782,45.0,181.79,181.76,5.5017]
[1722046212198,45.0,181.79,181.75,6.2894322]
[1722046215789,50.5009,181.79,181.75,6.2894322]
[1722046216185,45.0,181.79,181.75,6.2894322]
[1722046216802,50.5009,181.79,181.75,6.2894322]
[1722046217004,5.5011,181.78,181.75,0.7875322]
[1722046217209,45.0,181.77,181.75,0.7875322]
[1722046217801,45.0,181.77,181.76,5.5017]
[1722046218108,45.0,181.77,181.75,0.7875322]
[1722046218303,45.0,181.78,181.75,0.7875322]
[1722046218696,45.0,181.78,181.75,6.2894322]
[1722046219797,45.0,181.78,181.75,0.7875322]
[1722046220004,58.07,181.78,181.75,0.7875322]
[1722046220409,5.5016,181.77,181.75,0.7875322]
[1722046220709,45.0,181.76,181.75,0.7875322]
[1722046226908,63.5717,181.76,181.75,0.7875322]
[1722046229410,58.07,181.76,181.75,0.7875322]
[1722046229612,45.0,181.76,181.75,0.7875322]
[1722046230499,5.5011,181.78,181.75,0.7875322]
[1722046230905,18.5709,181.79,181.75,0.7875322]
[1722046231795,45.0,181.78,181.75,0.7875322]
[1722046232415,45.0,181.78,181.75,6.2894322]
[1722046232616,5.5006,181.8,181.75,6.2894322]
[1722046233210,5.5006,181.8,181.75,0.7875322]
[1722046233407,5.5006,181.8,181.75,6.2895322]
[1722046233820,45.0,181.79,181.75,6.2895322]
[1722046235321,50.5008,181.79,181.75,6.2895322]
[1722046238115,5.5012,181.78,181.75,0.7875322]
[1722046238436,45.0,181.77,181.75,0.7875322]
[1722046239630,13.07,181.79,181.75,0.7875322]
[1722046239631,45.0,181.78,181.75,0.7875322]
[1722046239836,50.5011,181.78,181.75,0.7875322]
[1722046241823,63.5711,181.78,181.75,0.7875322]
[1722046242021,5.5015,181.77,181.75,0.7875322]
[1722046242210,45.0,181.76,181.75,0.7875322]
[1722046244235,58.07,181.76,181.75,0.7875322]
[1722046244731,45.0,181.76,181.75,0.7875322]
[1722046245823,18.5709,181.79,181.75,0.7875322]
[1722046246021,5.5,181.82,181.78,5.501]
[1722046246325,5.5,181.82,181.77,5.5013]
[1722046246507,5.5,181.82,181.78,5.5011]
[1722046247315,45.0,181.81,181.78,5.5011]
[1722046247532,50.5002,181.81,181.77,5.5014]
[1722046248716,50.5002,181.81,181.76,18.5717]
[1722046249029,50.5002,181.81,181.76,5.5017]
[1722046249030,63.5702,181.81,181.76,5.5017]
[1722046250826,5.74158653,181.87,181.8,13.07]
[1722046251011,9.92207506,181.86,181.85,5.499]
[1722046251207,18.5675,181.9,181.85,18.569]
[1722046251208,5.4975,181.9,181.85,18.569]
[1722046251408,15.7651,181.92,181.85,18.569]
[1722046251409,9.91874513,181.89,181.86,5.4986]
[1722046251631,13.07,181.91,181.86,5.4986]
[1722046251632,9.91874537,181.88,181.86,5.4986]
[1722046251933,13.07,181.91,181.86,5.4986]
[1722046252226,9.91811471,181.9,181.86,5.4986]
[1722046253246,9.91811471,181.9,181.86,13.07]
[1722046253529,5.4963,181.94,181.81,1.09968404]
[1722046253739,15.7651,181.97,181.81,1.09968404]
[1722046253740,9.91693461,181.93,181.88,13.07]
[1722046254031,18.566,181.95,181.9,5.4972]
[1722046254237,22.9862541,181.94,181.9,5.4972]
[1722046254439,13.07,181.94,181.9,5.4972]
[1722046254838,45.0,181.93,181.9,5.4972]
[1722046255625,18.566,181.95,181.9,5.4972]
[1722046256839,45.0,181.94,181.9,5.4972]
[1722046259038,50.4963,181.94,181.9,5.4972]
[1722046259228,45.0,181.94,181.89,18.5678]
[1722046259614,5.4966,181.93,181.87,13.07]
[1722046259814,45.0,181.92,181.87,13.07]
[1722046260034,50.4969,181.92,181.88,18.568]
[1722046261851,45.0,181.92,181.89,13.07]
[1722046262034,45.0,181.93,181.9,13.07]
[1722046262345,45.0,181.93,181.9,18.5674]
[1722046262556,45.0,181.94,181.89,13.07]
[1722046262748,50.4965,181.94,181.89,18.5677]
[1722046267158,50.4965,181.94,181.9,5.4974]
[1722046267652,45.0,181.94,181.9,5.4974]
[1722046269645,45.0,181.94,181.91,5.4971]
[1722046270166,45.0,181.94,181.9,5.4974]
[1722046270755,45.0,181.94,181.89,13.07]
[1722046270756,13.07,181.92,181.86,15.4029]
[1722046270956,45.0,181.94,181.84,13.07]
[1722046270957,13.07,181.9,181.84,13.07]
[1722046271258,18.5675,181.9,181.85,5.4989]
[1722046271569,45.0,181.89,181.86,5.4987]
[1722046271740,45.0,181.89,181.87,5.4983]
[1722046272043,5.4969,181.92,181.87,5.4983]
[1722046272251,45.0,181.91,181.87,5.4983]
[1722046272637,45.0,181.91,181.87,18.5683]
[1722046273553,45.0,181.91,181.87,5.4983]
[1722046273949,50.4973,181.91,181.87,5.4983]
[1722046274860,50.4973,181.91,181.86,5.4986]
[1722046276261,50.4973,181.91,181.87,5.4983]
[1722046277463,58.07,181.91,181.85,13.07]
[1722046277758,58.07,181.91,181.84,13.07]
[1722046277962,13.07,181.9,181.84,13.07]
[1722046278161,45.0,181.89,181.84,13.07]
[1722046278658,45.0,181.89,181.86,5.4986]
[1722046282762,45.0,181.89,181.87,5.4984]
[1722046284054,45.0,181.89,181.86,5.4986]
[1722046286667,63.5678,181.89,181.85,5.4989]
[1722046287066,58.07,181.89,181.85,5.4989]
[1722046288556,58.07,181.89,181.86,5.4987]
[1722046293278,45.0,181.89,181.86,5.4987]
[1722046293450,58.07,181.9,181.86,5.4987]
[1722046294967,58.07,181.9,181.84,13.07]
[1722046295173,45.0,181.9,181.88,5.498]
[1722046295873,45.0,181.91,181.88,5.498]
[1722046298055,45.0,181.91,181.85,13.07]
[1722046298253,45.0,181.91,181.87,5.4983]
[1722046298974,50.4972,181.91,181.87,5.4983]
[1722046303271,50.4972,181.91,181.86,5.4986]
[1722046303481,63.5672,181.91,181.86,5.4986]
[1722046305675,45.0,181.91,181.85,13.07]
[1722046305880,45.0,181.91,181.88,5.4979]
[1722046306059,50.4969,181.92,181.88,5.4979]
[1722046307567,63.5669,181.92,181.88,5.4979]
[1722046308090,50.4969,181.92,181.88,5.4979]
[1722046308295,63.5669,181.92,181.88,5.4979]
[1722046310075,63.5669,181.92,181.87,5.4983]
[1722046310680,13.07,181.91,181.87,5.4983]
[1722046310883,45.0,181.9,181.87,5.4983]
[1722046311681,45.0,181.9,181.88,5.498]
[1722046312182,45.0,181.9,181.83,6.1148]
[1722046312183,58.07,181.9,181.83,6.1148]
[1722046312379,63.5678,181.9,181.86,5.4986]
[1722046321807,58.07,181.9,181.84,13.07]
[1722046321980,45.0,181.9,181.87,5.4983]
[1722046328280,63.5675,181.9,181.86,5.4986]
[1722046329297,58.07,181.9,181.86,5.4986]
[1722046329692,63.5675,181.9,181.86,5.4986]
[1722046330684,58.07,181.9,181.86,5.4986]
[1722046331891,63.5675,181.9,181.86,5.4986]
[1722046334897,13.07,181.87,181.79,6.5411]
[1722046335098,58.07,181.86,181.79,13.07]
[1722046335296,60.9605,181.9,181.76,15.9366]
[1722046335297,58.07,181.85,181.78,13.07]
[1722046335497,63.569,181.85,181.8,5.5004]
[1722046335896,45.0,181.85,181.8,13.07]
[1722046336096,45.0,181.86,181.82,5.4998]
[1722046339793,45.0,181.86,181.83,5.4996]
[1722046341002,45.0,181.86,181.82,5.4998]
[1722046341199,45.0,181.86,181.83,5.4995]
[1722046342195,45.0,181.86,181.82,5.4998]
[1722046348618,50.4987,181.86,181.82,5.4998]
[1722046349798,15.9605,181.9,181.84,13.07]
[1722046350005,15.9605,181.9,181.85,18.5689]
[1722046351222,5.4978,181.89,181.85,18.5689]
[1722046351610,21.458,181.9,181.85,18.5689]
[1722046352726,5.4981,181.88,181.83,13.07]
[1722046353323,45.0,181.87,181.83,13.07]
[1722046353624,45.0,181.87,181.84,13.07]
[1722046354023,29.0305,181.9,181.84,18.569]
[1722046354024,15.9605,181.9,181.84,18.569]
[1722046354324,45.0,181.89,181.84,13.07]
[1722046354728,45.0,181.89,181.85,5.499]
[1722046358129,45.0,181.89,181.84,13.07]
[1722046358130,45.0,181.89,181.86,5.4986]
[1722046360533,63.5679,181.89,181.84,5.4992]
[1722046360924,63.5679,181.89,181.85,5.4989]
[1722046363033,63.5679,181.89,181.84,5.4993]
[1722046364734,45.0,181.89,181.85,5.499]
[1722046366130,50.4978,181.89,181.85,5.499]
[1722046366726,5.4982,181.88,181.84,5.4993]
[1722046366929,5.4982,181.88,181.84,18.5693]
[1722046367523,50.4979,181.89,181.84,18.5693]
[1722046368223,5.4967,181.93,181.87,13.07]
[1722046368452,9.91810413,181.92,181.83,1.09958624]
[1722046368639,28.651,181.95,181.88,13.07]
[1722046368849,13.07,181.94,181.88,13.07]
[1722046369342,5.4966,181.93,181.88,18.5681]
[1722046369948,45.0,181.92,181.88,18.5681]
[1722046371744,45.0,181.92,181.88,5.4981]
[1722046372548,18.5666,181.93,181.88,5.4981]
[1722046372934,45.0,181.92,181.88,5.4981]
[1722046374651,13.07,181.91,181.82,16.1213]
[1722046374961,45.0,181.9,181.86,5.4984]
[1722046375161,45.0,181.9,181.85,13.07]
[1722046376140,58.07,181.9,181.83,13.07]
[1722046376552,58.07,181.9,181.86,5.4987]
[1722046377249,45.0,181.9,181.86,5.4987]
[1722046377651,45.0,181.9,181.85,13.07]
[1722046377851,13.07,181.92,181.88,5.4981]
[1722046379150,13.07,181.92,181.89,5.4977]
[1722046381968,5.4965,181.94,181.89,5.4977]
[1722046382266,58.07,181.93,181.89,5.4977]
[1722046382767,63.5666,181.93,181.89,5.4977]
[1722046383153,63.5666,181.93,181.88,5.4981]
[1722046383659,13.07,181.92,181.88,5.4981]
[1722046387454,13.07,181.92,181.89,5.4978]
[1722046389745,18.5669,181.92,181.87,5.4982]
[1722046389946,45.0,181.91,181.87,5.4982]
[1722046390547,5.4976,181.9,181.85,5.4987]
[1722046390747,45.0,181.91,181.87,5.4981]
[1722046390962,58.07,181.91,181.87,5.4981]
[1722046391147,63.5672,181.91,181.87,5.4981]
[1722046394880,58.07,181.91,181.87,5.4981]
[1722046396253,58.07,181.91,181.88,5.498]
[1722046396672,58.07,181.91,181.82,16.1213]
[1722046396673,58.07,181.91,181.87,5.4983]
[1722046397676,58.07,181.91,181.88,5.4979]